[Event "*** Titled Tuesday 3|2 Blitz"]
[Site "Chess.com"]
[Date "2016.05.03"]
[Round "3"]
[White "AndrewMcStone"]
[Black "KuzubovYuriy"]
[Result "0-1"]
[WhiteElo "1974"]
[BlackElo "2591"]
[TimeControl "180+2"]
[EndTime "11:33:16 PDT"]
[Termination "KuzubovYuriy won by resignation"]

1. d4 {[%clk 0:03:01.9]} 1... Nf6 {[%clk 0:03:00.4]} 2. c4 {[%clk 0:02:58.1]}
2... e6 {[%clk 0:03:01.7]} 3. Nc3 {[%clk 0:02:58.9]} 3... Bb4 {[%clk 0:03:01.9]}
4. f3 {[%clk 0:03:00.1]} 4... d5 {[%clk 0:03:02]} 5. a3 {[%clk 0:03:01]} 5...
Bxc3+ {[%clk 0:03:02.8]} 6. bxc3 {[%clk 0:03:02.9]} 6... c5 {[%clk 0:03:04.5]}
7. cxd5 {[%clk 0:03:03.7]} 7... Nxd5 {[%clk 0:03:05.6]} 8. dxc5 {[%clk
0:03:04.8]} 8... Qa5 {[%clk 0:03:06.6]} 9. e4 {[%clk 0:03:05.6]} 9... Ne7 {[%clk
0:03:07]} 10. Be3 {[%clk 0:03:02]} 10... O-O {[%clk 0:03:07.6]} 11. Qb3 {[%clk
0:03:00.5]} 11... Na6 {[%clk 0:03:02.5]} 12. Bb5 {[%clk 0:02:47.9]} 12... Rd8
{[%clk 0:02:47]} 13. Ne2 {[%clk 0:02:42.2]} 13... Bd7 {[%clk 0:02:47.2]} 14.
Bxd7 {[%clk 0:02:26.3]} 14... Rxd7 {[%clk 0:02:49.1]} 15. O-O {[%clk 0:02:22.6]}
15... Rc8 {[%clk 0:02:39.8]} 16. Rfd1 {[%clk 0:02:10.2]} 16... Rdc7 {[%clk
0:02:34.4]} 17. Rd6 {[%clk 0:01:24.9]} 17... Nc6 {[%clk 0:02:23.8]} 18. Rad1
{[%clk 0:01:14.7]} 18... Nxc5 {[%clk 0:02:22.2]} 19. Qc2 {[%clk 0:00:15.7]}
19... h6 {[%clk 0:02:20.4]} 20. Nf4 {[%clk 0:00:14.2]} 20... Na4 {[%clk
0:02:14.5]} 21. R1d3 {[%clk 0:00:10.3]} 21... Ne5 {[%clk 0:02:05.9]} 22. R3d4
{[%clk 0:00:08.7]} 22... Nxc3 {[%clk 0:01:58.8]} 23. Rd8+ {[%clk 0:00:09.7]}
23... Kh7 {[%clk 0:01:57.8]} 24. Rxc8 {[%clk 0:00:10.6]} 24... Rxc8 {[%clk
0:01:58.9]} 25. Nh5 {[%clk 0:00:08.7]} 25... Nxf3+ {[%clk 0:01:54.9]} 26. gxf3
{[%clk 0:00:09]} 26... Qxh5 {[%clk 0:01:56.5]} 27. e5+ {[%clk 0:00:10.3]} 27...
Qg6+ {[%clk 0:01:56.9]} 28. Qxg6+ {[%clk 0:00:09.3]} 28... Kxg6 {[%clk
0:01:58.8]} 29. Rb4 {[%clk 0:00:08.6]} 29... b6 {[%clk 0:01:59]} 30. Kf2 {[%clk
0:00:05.5]} 30... Nd1+ {[%clk 0:01:59]} 31. Ke2 {[%clk 0:00:06]} 31... Nxe3
{[%clk 0:02:00.9]} 32. Kxe3 {[%clk 0:00:07.9]} 32... Rc3+ {[%clk 0:02:02.1]} 33.
Ke4 {[%clk 0:00:09.3]} 33... Rxa3 {[%clk 0:02:03.4]} 0-1

[Event "*** Titled Tuesday 3|2 Blitz"]
[Site "Chess.com"]
[Date "2016.05.03"]
[Round "3"]
[White "Quinten94"]
[Black "Misha_Bilous"]
[Result "1-0"]
[WhiteElo "2276"]
[BlackElo "2222"]
[TimeControl "180+2"]
[EndTime "11:33:19 PDT"]
[Termination "Quinten94 won by resignation"]

1. e4 {[%clk 0:03:01.9]} 1... c5 {[%clk 0:03:00.5]} 2. Nf3 {[%clk 0:03:03]} 2...
Nc6 {[%clk 0:03:01.3]} 3. Bb5 {[%clk 0:03:04.1]} 3... g6 {[%clk 0:03:02.3]} 4.
O-O {[%clk 0:03:02.8]} 4... Bg7 {[%clk 0:03:02.4]} 5. Re1 {[%clk 0:03:03.9]}
5... Nh6 {[%clk 0:02:55.1]} 6. c3 {[%clk 0:02:55]} 6... O-O {[%clk 0:02:50.7]}
7. d4 {[%clk 0:02:54.1]} 7... cxd4 {[%clk 0:02:51]} 8. cxd4 {[%clk 0:02:54.7]}
8... f6 {[%clk 0:02:51.8]} 9. Nc3 {[%clk 0:02:54.6]} 9... Nf7 {[%clk 0:02:51.6]}
10. h3 {[%clk 0:02:48.4]} 10... d6 {[%clk 0:02:41]} 11. d5 {[%clk 0:02:49.1]}
11... Nce5 {[%clk 0:02:39]} 12. Nd4 {[%clk 0:02:50.1]} 12... a6 {[%clk
0:02:26.3]} 13. Bf1 {[%clk 0:02:47]} 13... g5 {[%clk 0:01:52.2]} 14. Ne6 {[%clk
0:02:47.6]} 14... Bxe6 {[%clk 0:01:50.7]} 15. dxe6 {[%clk 0:02:48.8]} 15... Nh6
{[%clk 0:01:51.1]} 16. Nd5 {[%clk 0:02:50]} 16... Rc8 {[%clk 0:01:45.8]} 17. h4
{[%clk 0:02:47.8]} 17... g4 {[%clk 0:01:45.1]} 18. Be3 {[%clk 0:02:41]} 18... f5
{[%clk 0:01:33]} 19. Bg5 {[%clk 0:02:40.3]} 19... Nc6 {[%clk 0:01:26.1]} 20. Qd2
{[%clk 0:02:37.4]} 20... g3 {[%clk 0:01:16.6]} 21. f3 {[%clk 0:02:25.2]} 21...
Bd4+ {[%clk 0:01:03.4]} 22. Kh1 {[%clk 0:02:26.2]} 22... Qe8 {[%clk 0:00:51.1]}
23. Bxh6 {[%clk 0:02:27]} 23... Qh5 {[%clk 0:00:52.3]} 24. Qg5+ {[%clk
0:02:27.2]} 24... Qxg5 {[%clk 0:00:53.3]} 25. Bxg5 {[%clk 0:02:28.4]} 25... Bxb2
{[%clk 0:00:54.4]} 26. Rab1 {[%clk 0:02:28.9]} 26... Bd4 {[%clk 0:00:47.7]} 27.
Rxb7 {[%clk 0:02:28.7]} 27... fxe4 {[%clk 0:00:48.8]} 28. Rxe4 {[%clk
0:02:28.1]} 28... Rb8 {[%clk 0:00:40.8]} 29. Nxe7+ {[%clk 0:02:08.2]} 29... Nxe7
{[%clk 0:00:40.4]} 30. Rxb8 {[%clk 0:02:09.6]} 30... Rxb8 {[%clk 0:00:40.1]} 31.
Rxd4 {[%clk 0:02:10.8]} 31... Rb1 {[%clk 0:00:38.3]} 32. Kg1 {[%clk 0:02:12]}
32... Nc6 {[%clk 0:00:18.2]} 33. Rc4 {[%clk 0:02:07.9]} 33... Ne5 {[%clk
0:00:10.8]} 34. Rc8+ {[%clk 0:02:07.2]} 34... Kg7 {[%clk 0:00:10.9]} 35. e7
{[%clk 0:02:08.1]} 1-0

[Event "*** Titled Tuesday 3|2 Blitz"]
[Site "Chess.com"]
[Date "2016.05.03"]
[Round "3"]
[White "Mischuk_D"]
[Black "oskariot"]
[Result "0-1"]
[WhiteElo "2462"]
[BlackElo "2435"]
[TimeControl "180+2"]
[EndTime "11:33:21 PDT"]
[Termination "oskariot won by resignation"]

1. e4 {[%clk 0:03:01.9]} 1... c5 {[%clk 0:03:00.8]} 2. Nf3 {[%clk 0:03:01.1]}
2... e6 {[%clk 0:03:02.1]} 3. d4 {[%clk 0:03:01.7]} 3... cxd4 {[%clk 0:03:04]}
4. Nxd4 {[%clk 0:03:03.6]} 4... Nc6 {[%clk 0:03:05.7]} 5. Nc3 {[%clk 0:03:04.1]}
5... Qc7 {[%clk 0:03:06.7]} 6. Be2 {[%clk 0:03:02.5]} 6... a6 {[%clk 0:03:06.7]}
7. O-O {[%clk 0:03:03.1]} 7... Nf6 {[%clk 0:03:07.6]} 8. Kh1 {[%clk 0:02:55.8]}
8... Nxd4 {[%clk 0:02:58]} 9. Qxd4 {[%clk 0:02:56.1]} 9... Bc5 {[%clk
0:02:57.3]} 10. Qd3 {[%clk 0:02:57.3]} 10... b5 {[%clk 0:02:58.3]} 11. Bg5
{[%clk 0:02:53.8]} 11... Bb7 {[%clk 0:02:57.7]} 12. Bf3 {[%clk 0:02:37.1]} 12...
h5 {[%clk 0:02:15]} 13. Bxf6 {[%clk 0:02:09.7]} 13... gxf6 {[%clk 0:02:14.9]}
14. Rad1 {[%clk 0:01:55.2]} 14... h4 {[%clk 0:02:14.1]} 15. h3 {[%clk
0:01:45.8]} 15... Bc6 {[%clk 0:02:04.6]} 16. e5 {[%clk 0:01:37]} 16... fxe5
{[%clk 0:01:58.4]} 17. Bxc6 {[%clk 0:01:37.9]} 17... Qxc6 {[%clk 0:01:55.6]} 18.
Ne4 {[%clk 0:01:27.8]} 18... Be7 {[%clk 0:01:54.2]} 19. f3 {[%clk 0:01:28.4]}
19... d5 {[%clk 0:01:42.3]} 20. Nd2 {[%clk 0:01:29]} 20... f5 {[%clk 0:01:38.6]}
21. a4 {[%clk 0:01:18.8]} 21... b4 {[%clk 0:01:35.1]} 22. c4 {[%clk 0:01:14.8]}
22... bxc3 {[%clk 0:01:33.4]} 23. bxc3 {[%clk 0:01:15.9]} 23... Rc8 {[%clk
0:01:33.8]} 24. Rc1 {[%clk 0:01:12.4]} 24... e4 {[%clk 0:01:35.1]} 25. Qd4
{[%clk 0:01:12]} 25... Rg8 {[%clk 0:01:16.4]} 26. c4 {[%clk 0:01:13.1]} 26...
Qc5 {[%clk 0:01:00.5]} 27. Qe5 {[%clk 0:01:14.2]} 27... Qd6 {[%clk 0:00:59.2]}
28. Qb2 {[%clk 0:01:03.8]} 28... Qg3 {[%clk 0:00:55.7]} 29. Nb3 {[%clk 0:00:58]}
29... Bd6 {[%clk 0:00:55.6]} 30. Kg1 {[%clk 0:00:58.1]} 30... Qh2+ {[%clk
0:00:52.5]} 0-1

[Event "*** Titled Tuesday 3|2 Blitz"]
[Site "Chess.com"]
[Date "2016.05.03"]
[Round "3"]
[White "Usurpov"]
[Black "YaWaleriy"]
[Result "1-0"]
[WhiteElo "2341"]
[BlackElo "2179"]
[TimeControl "180+2"]
[EndTime "11:33:31 PDT"]
[Termination "Usurpov won by resignation"]

1. e4 {[%clk 0:03:01.9]} 1... e6 {[%clk 0:03:00.6]} 2. d4 {[%clk 0:03:00.2]}
2... d5 {[%clk 0:03:01.5]} 3. e5 {[%clk 0:03:00.7]} 3... c5 {[%clk 0:03:02.5]}
4. c3 {[%clk 0:03:00.5]} 4... Nc6 {[%clk 0:03:03.3]} 5. Nf3 {[%clk 0:02:57.8]}
5... Bd7 {[%clk 0:03:04.6]} 6. a3 {[%clk 0:02:54.7]} 6... c4 {[%clk 0:02:53.9]}
7. Nbd2 {[%clk 0:02:53.4]} 7... Na5 {[%clk 0:02:54.6]} 8. Be2 {[%clk 0:02:50.3]}
8... Bc6 {[%clk 0:02:55.4]} 9. O-O {[%clk 0:02:47]} 9... Qd7 {[%clk 0:02:56.4]}
10. Qe1 {[%clk 0:02:38.9]} 10... Ne7 {[%clk 0:02:53.2]} 11. Ng5 {[%clk
0:02:32.5]} 11... Nc8 {[%clk 0:02:50.8]} 12. f4 {[%clk 0:02:30.7]} 12... h6
{[%clk 0:02:49.8]} 13. Nh3 {[%clk 0:02:21.3]} 13... Ba4 {[%clk 0:02:51]} 14. Bd1
{[%clk 0:02:21.6]} 14... Nb6 {[%clk 0:02:48.3]} 15. Nf3 {[%clk 0:02:16.5]} 15...
Be7 {[%clk 0:02:43.7]} 16. Be3 {[%clk 0:02:05.6]} 16... Bxd1 {[%clk 0:02:17]}
17. Rxd1 {[%clk 0:02:02.7]} 17... O-O-O {[%clk 0:02:15.9]} 18. Nf2 {[%clk
0:01:51.5]} 18... Qa4 {[%clk 0:02:15.8]} 19. Qe2 {[%clk 0:01:49.7]} 19... Kb8
{[%clk 0:02:12.8]} 20. g4 {[%clk 0:01:49.2]} 20... h5 {[%clk 0:02:11.9]} 21. h3
{[%clk 0:01:50.5]} 21... hxg4 {[%clk 0:02:12.4]} 22. hxg4 {[%clk 0:01:52.4]}
22... Rh7 {[%clk 0:02:08]} 23. Kg2 {[%clk 0:01:53]} 23... Rdh8 {[%clk
0:02:08.6]} 24. f5 {[%clk 0:01:47.4]} 24... Qd7 {[%clk 0:02:05.5]} 25. Qc2
{[%clk 0:01:40.1]} 25... Nb3 {[%clk 0:01:52.1]} 26. Rh1 {[%clk 0:01:38.6]} 26...
Rxh1 {[%clk 0:01:51.7]} 27. Rxh1 {[%clk 0:01:38.7]} 27... Rxh1 {[%clk
0:01:52.1]} 28. Nxh1 {[%clk 0:01:40]} 28... exf5 {[%clk 0:01:46.2]} 29. gxf5
{[%clk 0:01:36.7]} 29... g6 {[%clk 0:01:47.2]} 30. e6 {[%clk 0:01:29.3]} 30...
fxe6 {[%clk 0:01:42.3]} 31. fxg6 {[%clk 0:01:29.8]} 31... Bd6 {[%clk 0:01:41.1]}
32. Nf2 {[%clk 0:01:23]} 32... Qg7 {[%clk 0:01:41.5]} 33. Ng4 {[%clk 0:01:22]}
33... Nc8 {[%clk 0:01:41.8]} 34. Nfe5 {[%clk 0:01:14]} 34... Ne7 {[%clk
0:01:40.7]} 35. Bh6 {[%clk 0:00:54.6]} 35... Qg8 {[%clk 0:01:41.2]} 36. g7
{[%clk 0:00:36.8]} 36... Nf5 {[%clk 0:01:40.5]} 37. Nf6 {[%clk 0:00:35.7]} 1-0

[Event "*** Titled Tuesday 3|2 Blitz"]
[Site "Chess.com"]
[Date "2016.05.03"]
[Round "3"]
[White "Elshan1985"]
[Black "flavettes"]
[Result "1-0"]
[WhiteElo "2575"]
[BlackElo "2374"]
[TimeControl "180+2"]
[EndTime "11:33:33 PDT"]
[Termination "Elshan1985 won by resignation"]

1. e4 {[%clk 0:03:00.1]} 1... c5 {[%clk 0:03:00]} 2. Nf3 {[%clk 0:02:58.5]} 2...
Nc6 {[%clk 0:03:01.4]} 3. Bb5 {[%clk 0:02:53.5]} 3... g6 {[%clk 0:03:01.9]} 4.
O-O {[%clk 0:02:53.3]} 4... Bg7 {[%clk 0:03:02.3]} 5. Re1 {[%clk 0:02:54.5]}
5... Nf6 {[%clk 0:03:01.1]} 6. c3 {[%clk 0:02:55]} 6... O-O {[%clk 0:03:00]} 7.
e5 {[%clk 0:02:55.1]} 7... Nd5 {[%clk 0:03:00.5]} 8. d4 {[%clk 0:02:56.7]} 8...
cxd4 {[%clk 0:03:00.3]} 9. cxd4 {[%clk 0:02:57.3]} 9... a6 {[%clk 0:02:59.8]}
10. Bc4 {[%clk 0:02:58.1]} 10... Nb6 {[%clk 0:03:00.8]} 11. Bb3 {[%clk
0:02:55.7]} 11... d6 {[%clk 0:02:49.2]} 12. e6 {[%clk 0:02:47.7]} 12... f5
{[%clk 0:02:41]} 13. Nc3 {[%clk 0:02:41.8]} 13... d5 {[%clk 0:02:07.1]} 14. Bf4
{[%clk 0:02:33.5]} 14... h6 {[%clk 0:01:57.5]} 15. h4 {[%clk 0:02:33.2]} 15...
Rf6 {[%clk 0:01:57.6]} 16. Qd2 {[%clk 0:02:23.9]} 16... Kh7 {[%clk 0:01:58.2]}
17. Ne5 {[%clk 0:02:20.3]} 17... Na5 {[%clk 0:00:53.5]} 18. Nf7 {[%clk
0:02:12.2]} 18... Nxb3 {[%clk 0:00:50.9]} 19. axb3 {[%clk 0:02:07.2]} 19... Qf8
{[%clk 0:00:51.9]} 20. Bc7 {[%clk 0:01:55.1]} 20... Bxe6 {[%clk 0:00:48.5]} 21.
Ng5+ {[%clk 0:01:54.4]} 21... hxg5 {[%clk 0:00:46.4]} 22. hxg5 {[%clk 0:01:56]}
22... Nd7 {[%clk 0:00:20]} 23. gxf6 {[%clk 0:01:55.3]} 23... Qxf6 {[%clk
0:00:21.9]} 24. Ra5 {[%clk 0:01:41.3]} 24... Rc8 {[%clk 0:00:14.2]} 25. Be5
{[%clk 0:01:41.9]} 25... Qf7 {[%clk 0:00:04.6]} 26. Bxg7 {[%clk 0:01:41.6]}
26... Kxg7 {[%clk 0:00:06.4]} 27. Qg5 {[%clk 0:01:39.7]} 27... Rc6 {[%clk
0:00:06.8]} 28. Nxd5 {[%clk 0:01:36.1]} 28... Nf6 {[%clk 0:00:07.6]} 29. Nf4
{[%clk 0:01:31.7]} 29... Bxb3 {[%clk 0:00:06.6]} 30. Rxf5 {[%clk 0:01:31.2]}
30... Rd6 {[%clk 0:00:05.5]} 31. Rfe5 {[%clk 0:01:30.7]} 31... Bc2 {[%clk
0:00:06.7]} 32. Rxe7 {[%clk 0:01:31.2]} 1-0

[Event "*** Titled Tuesday 3|2 Blitz"]
[Site "Chess.com"]
[Date "2016.05.03"]
[Round "3"]
[White "GulamaliRises"]
[Black "Winehouse83"]
[Result "1-0"]
[WhiteElo "2588"]
[BlackElo "2365"]
[TimeControl "180+2"]
[EndTime "11:33:58 PDT"]
[Termination "GulamaliRises won by resignation"]

1. e4 {[%clk 0:03:01.9]} 1... e5 {[%clk 0:03:00.7]} 2. Nf3 {[%clk 0:03:02.2]}
2... Nc6 {[%clk 0:03:00.9]} 3. Bc4 {[%clk 0:03:02.8]} 3... Bc5 {[%clk
0:03:00.2]} 4. O-O {[%clk 0:03:02.9]} 4... Nf6 {[%clk 0:03:00.6]} 5. d3 {[%clk
0:03:04.2]} 5... O-O {[%clk 0:02:57.4]} 6. c3 {[%clk 0:03:05.6]} 6... d5 {[%clk
0:02:56.2]} 7. exd5 {[%clk 0:03:06.3]} 7... Nxd5 {[%clk 0:02:58]} 8. Re1 {[%clk
0:03:07.2]} 8... Bg4 {[%clk 0:02:55.3]} 9. Nbd2 {[%clk 0:03:03.3]} 9... Nf6
{[%clk 0:02:41.2]} 10. h3 {[%clk 0:02:56.7]} 10... Bh5 {[%clk 0:02:40.7]} 11. b4
{[%clk 0:02:55.5]} 11... Bb6 {[%clk 0:02:39.7]} 12. b5 {[%clk 0:02:52.4]} 12...
Na5 {[%clk 0:02:17.8]} 13. Rxe5 {[%clk 0:02:53.2]} 13... Qd6 {[%clk 0:02:00.5]}
14. d4 {[%clk 0:02:50.6]} 14... c5 {[%clk 0:01:43.4]} 15. Ba3 {[%clk 0:02:47.2]}
15... Rac8 {[%clk 0:01:40.1]} 16. Be2 {[%clk 0:02:31.9]} 16... Rfd8 {[%clk
0:01:33.1]} 17. Qa4 {[%clk 0:01:46.2]} 17... Nd5 {[%clk 0:01:09.5]} 18. Ne4
{[%clk 0:01:36.2]} 18... Qg6 {[%clk 0:00:56.9]} 19. Nh4 {[%clk 0:01:25.6]} 19...
Qxe4 {[%clk 0:00:46.8]} 20. Rxe4 {[%clk 0:01:27.5]} 20... Nxc3 {[%clk
0:00:47.1]} 21. Qc2 {[%clk 0:01:29.2]} 21... Nxe2+ {[%clk 0:00:23.1]} 22. Rxe2
{[%clk 0:01:27]} 22... Bxe2 {[%clk 0:00:23.8]} 23. Qxe2 {[%clk 0:01:27.6]} 23...
cxd4 {[%clk 0:00:23.7]} 24. Rd1 {[%clk 0:01:28.5]} 24... Nc4 {[%clk 0:00:18.7]}
25. Bb4 {[%clk 0:01:29.6]} 25... Re8 {[%clk 0:00:17.6]} 26. Qg4 {[%clk
0:01:30.3]} 26... Rcd8 {[%clk 0:00:10.6]} 27. Nf5 {[%clk 0:01:31]} 27... g6
{[%clk 0:00:11.9]} 28. Nxd4 {[%clk 0:01:10.8]} 28... f5 {[%clk 0:00:10.8]} 29.
Nxf5 {[%clk 0:01:09]} 29... Rxd1+ {[%clk 0:00:11.1]} 30. Qxd1 {[%clk 0:01:10.9]}
30... gxf5 {[%clk 0:00:12.3]} 31. Qd5+ {[%clk 0:01:11.9]} 31... Kg7 {[%clk
0:00:05]} 32. Qd7+ {[%clk 0:01:08.7]} 1-0

[Event "*** Titled Tuesday 3|2 Blitz"]
[Site "Chess.com"]
[Date "2016.05.03"]
[Round "3"]
[White "Spas_Kozhuharov"]
[Black "Danirod"]
[Result "1-0"]
[WhiteElo "2476"]
[BlackElo "2418"]
[TimeControl "180+2"]
[EndTime "11:34:01 PDT"]
[Termination "Spas_Kozhuharov won by resignation"]

1. d4 {[%clk 0:03:01.9]} 1... Nf6 {[%clk 0:03:00.7]} 2. c4 {[%clk 0:03:02.5]}
2... e6 {[%clk 0:03:01.8]} 3. Nc3 {[%clk 0:03:00.7]} 3... Bb4 {[%clk 0:03:02.2]}
4. Qc2 {[%clk 0:03:00.8]} 4... O-O {[%clk 0:03:00.5]} 5. a3 {[%clk 0:03:01.2]}
5... Bxc3+ {[%clk 0:02:59.4]} 6. Qxc3 {[%clk 0:03:03.1]} 6... b6 {[%clk
0:03:00]} 7. Bg5 {[%clk 0:03:03.3]} 7... h6 {[%clk 0:03:00.9]} 8. Bh4 {[%clk
0:03:00.3]} 8... Bb7 {[%clk 0:03:02.1]} 9. Nf3 {[%clk 0:03:00.4]} 9... d5 {[%clk
0:03:02.7]} 10. cxd5 {[%clk 0:02:57.5]} 10... Bxd5 {[%clk 0:03:02.8]} 11. Ne5
{[%clk 0:02:55.1]} 11... g5 {[%clk 0:02:56.1]} 12. Bg3 {[%clk 0:02:54.5]} 12...
Ne4 {[%clk 0:02:57.3]} 13. Qd3 {[%clk 0:02:49]} 13... Nd7 {[%clk 0:02:52.1]} 14.
Nxd7 {[%clk 0:02:48.4]} 14... Qxd7 {[%clk 0:02:53.1]} 15. f3 {[%clk 0:02:46.3]}
15... Nxg3 {[%clk 0:02:52.4]} 16. hxg3 {[%clk 0:02:48.2]} 16... Kg7 {[%clk
0:02:53.7]} 17. e4 {[%clk 0:02:37.4]} 17... Bb7 {[%clk 0:02:54.6]} 18. O-O-O
{[%clk 0:02:38.2]} 18... Rfd8 {[%clk 0:02:39.3]} 19. Qc3 {[%clk 0:02:34.9]}
19... f6 {[%clk 0:02:34.1]} 20. Bc4 {[%clk 0:02:32.7]} 20... Qe7 {[%clk
0:02:31]} 21. Rhe1 {[%clk 0:02:12.5]} 21... a6 {[%clk 0:02:24]} 22. Kb1 {[%clk
0:02:11]} 22... Rac8 {[%clk 0:02:20.5]} 23. d5 {[%clk 0:02:06.7]} 23... e5
{[%clk 0:02:19]} 24. f4 {[%clk 0:01:58.7]} 24... c6 {[%clk 0:02:08.5]} 25. fxe5
{[%clk 0:01:53.3]} 25... fxe5 {[%clk 0:01:57.5]} 26. dxc6 {[%clk 0:01:51.2]}
26... Rxd1+ {[%clk 0:01:46]} 27. Rxd1 {[%clk 0:01:53.1]} 27... Bxc6 {[%clk
0:01:47.3]} 28. Bd5 {[%clk 0:01:52]} 28... Bd7 {[%clk 0:01:38.2]} 29. Qb3 {[%clk
0:01:29.9]} 29... Qc5 {[%clk 0:01:20.9]} 30. Bg8 {[%clk 0:01:03.7]} 30... Be8
{[%clk 0:01:01.9]} 31. Be6 {[%clk 0:00:54.1]} 31... Rc7 {[%clk 0:01:03.1]} 32.
Rd8 {[%clk 0:00:52]} 32... Bf7 {[%clk 0:01:00.2]} 33. Bxf7 {[%clk 0:00:39.7]}
33... Rxf7 {[%clk 0:01:02.1]} 34. Rd5 {[%clk 0:00:38.1]} 34... Qg1+ {[%clk
0:01:03]} 35. Ka2 {[%clk 0:00:37.1]} 35... Qxg2 {[%clk 0:01:04.9]} 36. Rxe5
{[%clk 0:00:37]} 36... Qxg3 {[%clk 0:01:06.1]} 37. Qxg3 {[%clk 0:00:37]} 1-0

[Event "*** Titled Tuesday 3|2 Blitz"]
[Site "Chess.com"]
[Date "2016.05.03"]
[Round "3"]
[White "maciek_92"]
[Black "Gevorg_Harutjunyan"]
[Result "0-1"]
[WhiteElo "2577"]
[BlackElo "2598"]
[TimeControl "180+2"]
[EndTime "11:34:14 PDT"]
[Termination "Gevorg_Harutjunyan won by resignation"]

1. c4 {[%clk 0:03:01.9]} 1... Nf6 {[%clk 0:03:00]} 2. g3 {[%clk 0:03:02.8]} 2...
g6 {[%clk 0:03:00.5]} 3. Bg2 {[%clk 0:03:04]} 3... Bg7 {[%clk 0:03:01.5]} 4. Nc3
{[%clk 0:03:03.5]} 4... O-O {[%clk 0:03:02.4]} 5. d4 {[%clk 0:02:59.2]} 5... d6
{[%clk 0:03:03.1]} 6. e3 {[%clk 0:03:00.6]} 6... Nc6 {[%clk 0:03:01.4]} 7. Nge2
{[%clk 0:03:01.7]} 7... e5 {[%clk 0:03:01]} 8. O-O {[%clk 0:03:03.3]} 8... exd4
{[%clk 0:02:52]} 9. exd4 {[%clk 0:03:00.4]} 9... Re8 {[%clk 0:02:51.3]} 10. h3
{[%clk 0:02:58.7]} 10... Bf5 {[%clk 0:02:45]} 11. g4 {[%clk 0:02:57.9]} 11...
Bd7 {[%clk 0:02:45.3]} 12. Ng3 {[%clk 0:02:41.3]} 12... h6 {[%clk 0:02:23.8]}
13. Be3 {[%clk 0:02:38.9]} 13... Nh7 {[%clk 0:02:16.8]} 14. Qd2 {[%clk
0:02:34.1]} 14... Qh4 {[%clk 0:02:17.4]} 15. Nd5 {[%clk 0:02:27.6]} 15... Rac8
{[%clk 0:02:10.6]} 16. Nb4 {[%clk 0:01:40.9]} 16... Nxb4 {[%clk 0:02:06.5]} 17.
Qxb4 {[%clk 0:01:41.5]} 17... Rxe3 {[%clk 0:02:07.9]} 18. fxe3 {[%clk
0:01:43.4]} 18... Qxg3 {[%clk 0:02:09.2]} 19. Rf3 {[%clk 0:01:41.4]} 19... Qh4
{[%clk 0:02:09]} 20. Qxb7 {[%clk 0:01:23.6]} 20... Ng5 {[%clk 0:02:09.3]} 21.
Raf1 {[%clk 0:01:25]} 21... Nxf3+ {[%clk 0:02:07.4]} 22. Qxf3 {[%clk 0:01:25.7]}
22... Qe7 {[%clk 0:02:06.9]} 23. Kh1 {[%clk 0:01:21.8]} 23... c5 {[%clk
0:02:07.7]} 24. Qb7 {[%clk 0:01:13.6]} 24... cxd4 {[%clk 0:02:01.6]} 25. exd4
{[%clk 0:01:15.5]} 25... Bxd4 {[%clk 0:01:58.4]} 26. Bd5 {[%clk 0:01:16.4]}
26... Rf8 {[%clk 0:01:55.2]} 27. Bf3 {[%clk 0:01:09]} 27... Qh4 {[%clk
0:01:45.1]} 28. Kg2 {[%clk 0:01:04.8]} 28... Be5 {[%clk 0:01:43]} 29. Rh1 {[%clk
0:01:00.9]} 29... Qg3+ {[%clk 0:01:42.6]} 30. Kf1 {[%clk 0:01:02.3]} 30... Bd4
{[%clk 0:01:40.6]} 31. Ke2 {[%clk 0:00:59.5]} 31... Qf2+ {[%clk 0:01:41.3]} 32.
Kd1 {[%clk 0:00:55.9]} 32... Be3 {[%clk 0:01:40]} 33. Be2 {[%clk 0:00:53.9]}
33... Be6 {[%clk 0:01:27.7]} 34. Rf1 {[%clk 0:00:50.7]} 34... Qh2 {[%clk
0:01:24.1]} 35. Qe4 {[%clk 0:00:18.9]} 35... Qe5 {[%clk 0:01:24]} 36. Qxe5
{[%clk 0:00:20.2]} 36... dxe5 {[%clk 0:01:25.7]} 37. Kc2 {[%clk 0:00:22.1]}
37... f5 {[%clk 0:01:25.3]} 38. gxf5 {[%clk 0:00:21.5]} 38... gxf5 {[%clk
0:01:27.2]} 39. b4 {[%clk 0:00:21.3]} 39... e4 {[%clk 0:01:27.3]} 40. c5 {[%clk
0:00:22.7]} 40... f4 {[%clk 0:01:27.4]} 0-1

[Event "*** Titled Tuesday 3|2 Blitz"]
[Site "Chess.com"]
[Date "2016.05.03"]
[Round "3"]
[White "jcibarra"]
[Black "AleksandrNevski"]
[Result "1-0"]
[WhiteElo "2530"]
[BlackElo "2405"]
[TimeControl "180+2"]
[EndTime "11:34:15 PDT"]
[Termination "jcibarra won on time"]

1. e4 {[%clk 0:03:01.9]} 1... e5 {[%clk 0:03:00.1]} 2. Nf3 {[%clk 0:03:01.5]}
2... Nc6 {[%clk 0:03:00.9]} 3. Bb5 {[%clk 0:03:00.8]} 3... Nf6 {[%clk
0:03:00.9]} 4. O-O {[%clk 0:03:01.2]} 4... Be7 {[%clk 0:03:01.1]} 5. Bxc6 {[%clk
0:02:50.2]} 5... dxc6 {[%clk 0:02:56.6]} 6. Qe2 {[%clk 0:02:51.7]} 6... Bg4
{[%clk 0:02:36.1]} 7. h3 {[%clk 0:02:49.9]} 7... Bh5 {[%clk 0:02:22.8]} 8. d3
{[%clk 0:02:40.9]} 8... Nd7 {[%clk 0:02:22.5]} 9. b3 {[%clk 0:02:39.8]} 9... c5
{[%clk 0:02:21.2]} 10. Bb2 {[%clk 0:02:40.4]} 10... f6 {[%clk 0:02:22.8]} 11.
Nbd2 {[%clk 0:02:40.1]} 11... O-O {[%clk 0:02:22.9]} 12. Nc4 {[%clk 0:02:32.7]}
12... Nb8 {[%clk 0:02:22.1]} 13. g4 {[%clk 0:02:24.2]} 13... Bf7 {[%clk
0:02:21.2]} 14. Ne3 {[%clk 0:02:25.7]} 14... Nc6 {[%clk 0:02:21.5]} 15. c3
{[%clk 0:02:25.9]} 15... Qd7 {[%clk 0:02:07.4]} 16. Rad1 {[%clk 0:02:18.5]}
16... Rfe8 {[%clk 0:01:53]} 17. Kh2 {[%clk 0:02:14.3]} 17... Bd6 {[%clk
0:01:50.8]} 18. Rg1 {[%clk 0:02:14.8]} 18... Ne7 {[%clk 0:01:49]} 19. g5 {[%clk
0:02:13.9]} 19... f5 {[%clk 0:01:48.1]} 20. Nh4 {[%clk 0:02:02.5]} 20... Bg6
{[%clk 0:01:42.2]} 21. c4 {[%clk 0:01:58.1]} 21... Rf8 {[%clk 0:01:42]} 22. Nxg6
{[%clk 0:01:45.1]} 22... hxg6 {[%clk 0:01:39.5]} 23. f3 {[%clk 0:01:45]} 23...
Nc6 {[%clk 0:01:37.7]} 24. exf5 {[%clk 0:01:10.9]} 24... Nd4 {[%clk 0:01:37.6]}
25. Qf2 {[%clk 0:01:07.3]} 25... e4+ {[%clk 0:00:52.9]} 26. f4 {[%clk
0:01:06.6]} 26... Nf3+ {[%clk 0:00:43.7]} 27. Kh1 {[%clk 0:01:04.2]} 27... Nxg1
{[%clk 0:00:37.7]} 28. Kxg1 {[%clk 0:00:59.2]} 28... Rxf5 {[%clk 0:00:34.7]} 29.
dxe4 {[%clk 0:00:56.7]} 1-0